{"text_format":"3","workbook":"xlsx","n_sheets":2,"sheets":["Σύνοψη προϋπολογισμού","Λεπτομέρειες προϋπολογισμού"],"not_rendered":{"images":1,"defined_names":1},"read":"whole","date_system":"1900"}

{"sheet":"Σύνοψη προϋπολογισμού","index":0,"n_rows":28,"n_cols":7,"rows_kept":28}
[{"$nulls":6}," "]
[]
[null,"ΣΥΝΟΛΙΚOΣ ΠΡΟΫΠΟΛΟΓΙΣΜOΣ ΓΑΜΟΥ",{"v":20000,"d":"20,000 €"}]
[]
[null,"ΕΞΟΔΑ","Κατανομή \n%","Διατιθέμενος προϋπολογισμός","Εκτιμώμενα \nΈξοδα","Πραγματικά \nΈξοδα"]
[null,"Δεξίωση",{"v":0.5,"d":"50%"},{"$f":"Συνολικός_Προϋπολογισμός_Γάμου*'Σύνοψη προϋπολογισμού'!$C6","v":{"v":10000,"d":"10,000 €"}},{"$f":"Πίνακας_Δεξίωσης[[#Totals],[Εκτιμώμενο κόστος]]","v":{"v":0,"d":"0 €"}},{"$f":"Πίνακας_Δεξίωσης[[#Totals],[Πραγματικό κόστος]]","v":{"v":0,"d":"0 €"}}]
[null,"Ενδυμασία",{"v":0.1,"d":"10%"},{"$f":"Συνολικός_Προϋπολογισμός_Γάμου*'Σύνοψη προϋπολογισμού'!$C7","v":{"v":2000,"d":"2,000 €"}},{"$f":"Πίνακας_Ενδυμασίας[[#Totals],[Εκτιμώμενο κόστος]]","v":{"v":0,"d":"0 €"}},{"$f":"Πίνακας_Ενδυμασίας[[#Totals],[Πραγματικό κόστος]]","v":{"v":0,"d":"0 €"}}]
[null,"Λουλούδια και διακοσμήσεις",{"v":0.1,"d":"10%"},{"$f":"Συνολικός_Προϋπολογισμός_Γάμου*'Σύνοψη προϋπολογισμού'!$C8","v":{"v":2000,"d":"2,000 €"}},{"$f":"Πίνακας_ΛουλούδιακαιΔιακόσμηση[[#Totals],[Εκτιμώμενο κόστος]]","v":{"v":0,"d":"0 €"}},{"$f":"Πίνακας_ΛουλούδιακαιΔιακόσμηση[[#Totals],[Πραγματικό κόστος]]","v":{"v":0,"d":"0 €"}}]
[null,"Μουσική",{"v":0.1,"d":"10%"},{"$f":"Συνολικός_Προϋπολογισμός_Γάμου*'Σύνοψη προϋπολογισμού'!$C9","v":{"v":2000,"d":"2,000 €"}},{"$f":"Πίνακας_Μουσικής[[#Totals],[Εκτιμώμενο κόστος]]","v":{"v":0,"d":"0 €"}},{"$f":"Πίνακας_Μουσικής[[#Totals],[Πραγματικό κόστος]]","v":{"v":0,"d":"0 €"}}]
[null,"Φωτογραφίες και βίντεο",{"v":0.1,"d":"10%"},{"$f":"Συνολικός_Προϋπολογισμός_Γάμου*'Σύνοψη προϋπολογισμού'!$C10","v":{"v":2000,"d":"2,000 €"}},{"$f":"Table_PhotographsAndVideo[[#Totals],[Εκτιμώμενο κόστος]]","v":{"v":0,"d":"0 €"}},{"$f":"Table_PhotographsAndVideo[[#Totals],[Πραγματικό κόστος]]","v":{"v":0,"d":"0 €"}}]
[null,"Μπομπονιέρες και δώρα",{"v":0.03,"d":"3%"},{"$f":"Συνολικός_Προϋπολογισμός_Γάμου*'Σύνοψη προϋπολογισμού'!$C11","v":{"v":600,"d":"600 €"}},{"$f":"Table_FavorsAndGifts[[#Totals],[Εκτιμώμενο κόστος]]","v":{"v":0,"d":"0 €"}},{"$f":"Table_FavorsAndGifts[[#Totals],[Πραγματικό κόστος]]","v":{"v":0,"d":"0 €"}}]
[null,"Τελετή",{"v":0.02,"d":"2%"},{"$f":"Συνολικός_Προϋπολογισμός_Γάμου*'Σύνοψη προϋπολογισμού'!$C12","v":{"v":400,"d":"400 €"}},{"$f":"Πίνακας_Τελετής[[#Totals],[Εκτιμώμενο κόστος]]","v":{"v":0,"d":"0 €"}},{"$f":"Πίνακας_Τελετής[[#Totals],[Πραγματικό κόστος]]","v":{"v":0,"d":"0 €"}}]
[null,"Χαρτικά",{"v":0.02,"d":"2%"},{"$f":"Συνολικός_Προϋπολογισμός_Γάμου*'Σύνοψη προϋπολογισμού'!$C13","v":{"v":400,"d":"400 €"}},{"$f":"Πίνακας_γραφικήςύλης[[#Totals],[Εκτιμώμενο κόστος]]","v":{"v":0,"d":"0 €"}},{"$f":"Πίνακας_γραφικήςύλης[[#Totals],[Πραγματικό κόστος]]","v":{"v":0,"d":"0 €"}}]
[null,"Βέρες γάμου",{"v":0.02,"d":"2%"},{"$f":"Συνολικός_Προϋπολογισμός_Γάμου*'Σύνοψη προϋπολογισμού'!$C14","v":{"v":400,"d":"400 €"}},{"$f":"Πίνακας_Βέρες[[#Totals],[Εκτιμώμενο κόστος]]","v":{"v":0,"d":"0 €"}},{"$f":"Πίνακας_Βέρες[[#Totals],[Πραγματικό κόστος]]","v":{"v":0,"d":"0 €"}}]
[null,"Μετακινήσεις",{"v":0.01,"d":"1%"},{"$f":"Συνολικός_Προϋπολογισμός_Γάμου*'Σύνοψη προϋπολογισμού'!$C15","v":{"v":200,"d":"200 €"}},{"$f":"Πίνακας_Μετακινήσεων[[#Totals],[Εκτιμώμενο κόστος]]","v":{"v":0,"d":"0 €"}},{"$f":"Πίνακας_Μετακινήσεων[[#Totals],[Πραγματικό κόστος]]","v":{"v":0,"d":"0 €"}}]
[null,"Άθροισμα",{"$f":"SUM(C6:C15)","v":{"v":1,"d":"100%"}},{"$f":"SUM(D6:D15)","v":{"v":20000,"d":"20,000 €"}},{"v":0,"d":"0 €"},{"v":0,"d":"0 €"}]
[]
[null,"ΣΥΝΕΙΣΦΟΡΕΣ"]
[null,"Πηγή χρηματοδότησης","Συνεισφορά"]
[null,"Αποταμιεύσεις",{"v":10000,"d":"10,000 €"}]
[null,"Μαμά & μπαμπάς του συντρόφου 1",{"v":4000,"d":"4,000 €"}]
[null,"Παππούς και γιαγιά του συντρόφου 1",{"v":2000,"d":"2,000 €"}]
[null,"Μαμά & μπαμπάς του συντρόφου 2",{"v":4000,"d":"4,000 €"}]
[null,"Παππούς και γιαγιά του συντρόφου 2",{"v":4000,"d":"4,000 €"}]
[null,"Άλλες συνεισφορές",{"v":2000,"d":"2,000 €"}]
[null,"Άθροισμα",{"$f":"SUBTOTAL(109,Πίνακας_Συνεισφορών[Συνεισφορά])","v":{"v":26000,"d":"26,000 €"}}]
[]
[null,{"$f":"IF(Πίνακας_Συνεισφορών[[#Totals],[Συνεισφορά]]<Συνολικός_Προϋπολογισμός_Γάμου,\"Διαφορά προς διόρθωση\",\"Διαθέσιμα επιπλέον ποσά\")","v":"Διαθέσιμα επιπλέον ποσά"},{"$f":"IF(Πίνακας_Συνεισφορών[[#Totals],[Συνεισφορά]]<Συνολικός_Προϋπολογισμός_Γάμου,Συνολικός_Προϋπολογισμός_Γάμου-Πίνακας_Συνεισφορών[[#Totals],[Συνεισφορά]],Πίνακας_Συνεισφορών[[#Totals],[Συνεισφορά]]-Συνολικός_Προϋπολογισμός_Γάμου)","v":{"v":6000,"d":"6,000 €"}}]

{"sheet":"Λεπτομέρειες προϋπολογισμού","index":1,"n_rows":80,"n_cols":4,"rows_kept":80}
[]
[null,"ΔΕΞΙΩΣΗ","Εκτιμώμενο κόστος","Πραγματικό κόστος"]
[null,"Χώρος και ενοικιάσεις"]
[null,"Φαγητό και εξυπηρέτηση"]
[null,"Ποτά"]
[null,"Τούρτα"]
[null,"Διάφορα έξοδα"]
[null,"Άθροισμα",{"$f":"SUBTOTAL(109,Πίνακας_Δεξίωσης[Εκτιμώμενο κόστος])","v":{"v":0,"d":"0.00 €"}},{"$f":"SUBTOTAL(109,Πίνακας_Δεξίωσης[Πραγματικό κόστος])","v":{"v":0,"d":"0.00 €"}}]
[]
[null,"ΕΝΔΥΜΑΣΙΑ","Εκτιμώμενο κόστος","Πραγματικό κόστος"]
[null,"Σμόκιν, κοστούμι ή/και φορέματα"]
[null,"Αλλαγές"]
[null,"Διακοσμητικό κεφαλής και πέπλο"]
[null,"Αξεσουάρ"]
[null,"Μαλλιά και μακιγιάζ"]
[null,"Διάφορα έξοδα"]
[null,"Άθροισμα",{"$f":"SUBTOTAL(109,Πίνακας_Ενδυμασίας[Εκτιμώμενο κόστος])","v":{"v":0,"d":"0.00 €"}},{"$f":"SUBTOTAL(109,Πίνακας_Ενδυμασίας[Πραγματικό κόστος])","v":{"v":0,"d":"0.00 €"}}]
[]
[null,"ΛΟΥΛΟΥΔΙΑ ΚΑΙ ΔΙΑΚΟΣΜΗΣΕΙΣ","Εκτιμώμενο κόστος","Πραγματικό κόστος"]
[null,"Ανθοσυνθέσεις για την τελετή"]
[null,"Μπουμπούκια και καλάθι για τις κοπέλες με τα λουλούδια"]
[null,"Μαξιλάρι για τις βέρες"]
[null,"Ανθοδέσμες"]
[null,"Μπουτονιέρες"]
[null,"Κορσάζ"]
[null,"Διακοσμήσεις για τη δεξίωση"]
[null,"Φωτισμός"]
[null,"Διάφορα έξοδα"]
[null,"Άθροισμα",{"$f":"SUBTOTAL(109,Πίνακας_ΛουλούδιακαιΔιακόσμηση[Εκτιμώμενο κόστος])","v":{"v":0,"d":"0.00 €"}},{"$f":"SUBTOTAL(109,Πίνακας_ΛουλούδιακαιΔιακόσμηση[Πραγματικό κόστος])","v":{"v":0,"d":"0.00 €"}}]
[]
[null,"ΜΟΥΣΙΚΗ","Εκτιμώμενο κόστος","Πραγματικό κόστος"]
[null,"Μουσικοί τελετής"]
[null,"Μουσικοί για την ώρα του κοκτέιλ"]
[null,"Μπάντα δεξίωσης, DJ ή ψυχαγωγία"]
[null,"Ενοικίαση συστήματος ήχου ή πίστας για χορό"]
[null,"Διάφορα έξοδα"]
[null,"Άθροισμα",{"$f":"SUBTOTAL(109,Πίνακας_Μουσικής[Εκτιμώμενο κόστος])","v":{"v":0,"d":"0.00 €"}},{"$f":"SUBTOTAL(109,Πίνακας_Μουσικής[Πραγματικό κόστος])","v":{"v":0,"d":"0.00 €"}}]
[]
[null,"ΦΩΤΟΓΡΑΦΙΕΣ ΚΑΙ ΒΙΝΤΕΟ","Εκτιμώμενο κόστος","Πραγματικό κόστος"]
[null,"Φωτογράφιση"]
[null,"Βιντεοσκόπηση"]
[null,"Πρόσθετες εκτυπώσεις και λευκώματα"]
[null,"Διάφορα έξοδα"]
[null,"Άθροισμα",{"$f":"SUBTOTAL(109,Table_PhotographsAndVideo[Εκτιμώμενο κόστος])","v":{"v":0,"d":"0.00 €"}},{"$f":"SUBTOTAL(109,Table_PhotographsAndVideo[Πραγματικό κόστος])","v":{"v":0,"d":"0.00 €"}}]
[]
[null,"ΜΠΟΜΠΟΝΙΕΡΕΣ ΚΑΙ ΔΩΡΑ","Εκτιμώμενο κόστος","Πραγματικό κόστος"]
[null,"Δώρα καλωσορίσματος"]
[null,"Δώρα για το γλέντι"]
[null,"Διάφορα έξοδα"]
[null,"Άθροισμα",{"$f":"SUBTOTAL(109,Table_FavorsAndGifts[Εκτιμώμενο κόστος])","v":{"v":0,"d":"0.00 €"}},{"$f":"SUBTOTAL(109,Table_FavorsAndGifts[Πραγματικό κόστος])","v":{"v":0,"d":"0.00 €"}}]
[]
[null,"ΤΕΛΕΤΗ","Εκτιμώμενο κόστος","Πραγματικό κόστος"]
[null,"Έξοδα τοποθεσίας"]
[null,"Έξοδα τελετάρχη ή δωρεά στην εκκλησία"]
[null,"Διάφορα έξοδα"]
[null,"Άθροισμα",{"$f":"SUBTOTAL(109,Πίνακας_Τελετής[Εκτιμώμενο κόστος])","v":{"v":0,"d":"0.00 €"}},{"$f":"SUBTOTAL(109,Πίνακας_Τελετής[Πραγματικό κόστος])","v":{"v":0,"d":"0.00 €"}}]
[]
[null,"ΧΑΡΤΙΚΑ","Εκτιμώμενο κόστος","Πραγματικό κόστος"]
[null,"Κάρτες «Σημειώστε την ημερομηνία»"]
[null,"Προσκλήσεις και RSVP"]
[null,"Προγράμματα"]
[null,"Καθίσματα και τοποθέτηση καρτών"]
[null,"Κάρτες μενού"]
[null,"Ευχαριστήρια σημειώματα"]
[null,"Ταχυδρομικά τέλη"]
[null,"Διάφορα έξοδα"]
[null,"Άθροισμα",{"$f":"SUBTOTAL(109,Πίνακας_γραφικήςύλης[Εκτιμώμενο κόστος])","v":{"v":0,"d":"0.00 €"}},{"$f":"SUBTOTAL(109,Πίνακας_γραφικήςύλης[Πραγματικό κόστος])","v":{"v":0,"d":"0.00 €"}}]
[]
[null,"ΒΕΡΕΣ ΓΑΜΟΥ","Εκτιμώμενο κόστος","Πραγματικό κόστος"]
[null,"Βέρες γάμου"]
[null,"Αξεσουάρ δαχτυλιδιών"]
[null,"Σύνολο",{"$f":"SUBTOTAL(109,Πίνακας_Βέρες[Εκτιμώμενο κόστος])","v":{"v":0,"d":"0.00 €"}},{"$f":"SUBTOTAL(109,Πίνακας_Βέρες[Πραγματικό κόστος])","v":{"v":0,"d":"0.00 €"}}]
[]
[null,"ΜΕΤΑΚΙΝΗΣΕΙΣ","Εκτιμώμενο κόστος","Πραγματικό κόστος"]
[null,"Ενοικίαση κύριου αυτοκινήτου"]
[null,"Ενοικίαση αυτοκινήτου για τους καλεσμένους"]
[null,"Μεταφορά για καλεσμένους εκτός πόλεως"]
[null,"Υπηρεσία στάθμευσης με παρκαδόρο"]
[null,"Διάφορα έξοδα"]
[null,"Άθροισμα",{"$f":"SUBTOTAL(109,Πίνακας_Μετακινήσεων[Εκτιμώμενο κόστος])","v":{"v":0,"d":"0.00 €"}},{"$f":"SUBTOTAL(109,Πίνακας_Μετακινήσεων[Πραγματικό κόστος])","v":{"v":0,"d":"0.00 €"}}]